[Event "Sardinia World Festival-A 2024"]
[Site "Orosei"]
[Date "2024.04.29"]
[Round "3.22"]
[White "Agmanov, Zhandos"]
[Black "Szwed, Jacek"]
[Result "1-0"]
[ECO "C65"]
[WhiteElo "2458"]
[BlackElo "2336"]
[Annotator "TA"]
[PlyCount "109"]
[EventDate "2024.04.26"]
[EventType "swiss"]
[EventCountry "ITA"]
[SourceTitle "playchess.com"]
[Source "ChessBase"]
[SourceQuality "1"]
[TimeControl "40/5400+30:1800+30"]

{[%evp 11,109,11,6,13,19,6,30,25,31,26,52,47,55,51,40,46,49,11,17,0,10,7,10,16,11,0,34,32,25,2,37,14,17,8,7,0,0,6,6,0,5,0,0,0,0,0,0,0,0,0,9,9,9,0,10,0,11,11,19,8,8,5,19,0,23,9,21,21,74,71,70,56,48,74,153,131,132,137,107,139,145,142,258,265,282,213,739,729,675,620,4133,3234,29980,29981,29980,29981,29983,29982,29982,29982]} 1. e4 {[%emt 0:02:07]} e5 {[%emt 0:00:02]} 2. Nf3 {[%emt 0:00:36]} Nc6 {[%emt 0:00:06]} 3. Bb5 {[%emt 0:00:18]} Nf6 {[%emt 0:00:08]} 4. d3 {[%emt 0:03:13]} Bc5 {[%emt 0:00:14]} 5. c3 {[%emt 0:02:59][%cal Bc2c3,Bc3d4][%mdl 32]} O-O {[%emt 0:00:09]} 6. O-O {[%emt 0:00:07]} d6 {[%emt 0:00:06][%cal Bd7d6,Bd6d5][%mdl 32]} 7. Re1 {[%emt 0:00:21]} Ne7 {[%emt 0:04:00]} 8. d4 {[%emt 0:04:41]} exd4 {[%emt 0:06:54]} 9. cxd4 {[%emt 0:01:16] White has an edge.} Bb6 {[%emt 0:00:05]} 10. h3 {[%emt 0:27:57] Wards off Bg4} d5 {[%emt 0:00:58]} 11. e5 {[%emt 0:01:11]} Ne4 {[%emt 0:00:02]} 12. Nc3 {[%emt 0:01:04]} Bf5 {[%emt 0:15:32]} 13. Bd3 {[%emt 0:06:36]} c5 {[%emt 0:15:17]} 14. Nxe4 {[%emt 0:11:13]} (14. dxc5 {looks sharper.} Nxc3 15. bxc3 Bxc5 16. Bg5) 14... dxe4 {[%emt 0:00:36]} 15. Bxe4 {[%emt 0:00:10]} Bxe4 {[%emt 0:11:58]} 16. Rxe4 {[%emt 0:00:05]} Qd5 {[%emt 0:00:23]} 17. Qd3 {[%emt 0:02:29]} cxd4 {[%emt 0:01:45]} 18. Bg5 {[%emt 0:00:45]} ({Reject} 18. Nxd4 Rad8 19. Be3 Nf5 $17) 18... Ng6 {[%emt 0:04:25]} 19. h4 {[%emt 0:01:14][%cal Oh4h5]} Rfe8 {[%emt 0:03:59]} 20. Rae1 $1 {[%emt 0:02:03]} Bc7 {[%emt 0:08:01][%cal Rg6e5]} (20... Nf8 $5) 21. Qxd4 {[%emt 0:10:29]} Qxd4 {[%emt 0:03:06]} 22. Nxd4 {[%emt 0:00:06] Threatening h5.} Rxe5 {[%emt 0:02:34]} 23. Nf3 {[%emt 0:05:04]} Rxe4 {[%emt 0:00:38]} 24. Rxe4 {[%emt 0:00:01]} f6 {[%emt 0:11:11]} 25. Be3 {[%emt 0:01:27]} Rd8 {[%emt 0:02:16] ( -> ...Rd1+)} 26. g3 {[%emt 0:01:15]} Ne5 {[%emt 0:03:00]} 27. Nxe5 {[%emt 0:00:52]} Bxe5 {[%emt 0:00:08]} 28. Bxa7 $11 {[%emt 0:03:05][%mdl 4096] Endgame. KRB-KRB} Ra8 {[%emt 0:02:47]} 29. Be3 {[%emt 0:00:01]} Rxa2 {[%emt 0:01:29]} 30. b3 {[%emt 0:12:45]} Rc2 {[%emt 0:00:36]} 31. Rb4 {[%emt 0:00:00]} Rc7 {[%emt 0:00:02]} 32. Rb6 {[%emt 0:00:00]} Kf7 {[%emt 0:01:33]} 33. Kg2 {[%emt 0:00:00]} Ke7 {[%emt 0:01:56]} 34. Kf3 {[%emt 0:00:00]} Kd7 {[%emt 0:00:49]} 35. h5 {[%emt 0:00:00]} Kc8 {[%emt 0:00:14]} 36. h6 {[%emt 0:00:00]} gxh6 {[%emt 0:00:22]} 37. Ke4 {[%emt 0:00:00]} Rc3 {[%emt 0:01:06]} (37... Re7 $5 38. Kf3 (38. Bxh6 $2 {too greedy.} Bc7+ $19) 38... h5 $11) 38. b4 {[%emt 0:02:14][%cal Of2f4][%mdl 1024] White has compensation.} Kc7 {[%emt 0:00:27][%cal Oc3e3] White must now prevent ...Rxe3+!} 39. Bc5 {[%emt 0:00:04] f4 would now be deadly.} Rc4+ {[%emt 0:00:31]} (39... Rc1 $11) 40. Kd5 $16 {[%emt 0:01:00]} Rc2 {[%emt 0:00:33]} 41. Re6 {[%emt 0:03:17]} Rd2+ {[%emt 0:07:11]} 42. Kc4 $1 {[%emt 0:01:09]} h5 {[%emt 0:06:24]} ({Black should play} 42... Kd8) 43. f4 {[%emt 0:06:27][%cal Bf2f4,Bf4f5][%mdl 32]} Bb2 {[%emt 0:01:29] [#]} 44. Re7+ $1 {[%emt 0:06:55]} Rd7 {[%emt 0:00:03] aiming for ...Rxe7.} 45. Re2 {[%emt 0:00:41] White is more active.} Bc1 {[%emt 0:03:12][%cal Oh5h4] [#]} 46. Re6 $1 {[%emt 0:11:30] White threatens Bb6+ and mate.} Rd2 {[%emt 0:08:40]} (46... Rg7 $16) 47. Rxf6 $18 {[%emt 0:01:07]} Rg2 {[%emt 0:04:26]} 48. f5 {[%emt 0:00:30]} Bd2 $2 {[%emt 0:01:06]} (48... Bb2 49. Rh6 Kd8) 49. Bd6+ {[%emt 0:01:24]} Kd7 {[%emt 0:00:43]} 50. Kd5 {[%emt 0:00:33] And now Rf7+ would win.} Be1 {[%emt 0:00:19] Threatens to win with ...Rd2+.} 51. Rf7+ {[%emt 0:01:17]} Kd8 {[%emt 0:01:31]} 52. Ke6 {[%emt 0:00:56][%cal Rf7f8] White mates.} Re2+ {[%emt 0:00:21]} 53. Be5 {[%emt 0:00:30][%cal Rf7f8]} Ke8 {[%emt 0:01:05]} 54. Re7+ {[%emt 0:00:55]} Kd8 {[%emt 0:00:26]} 55. Rxh7 {[%emt 0:00:12] Weighted Error Value: White=0.04 (flawless) /Black=0.26 (precise) .  Mistake:       	---       	Black=4      Inaccurate:     	White=1     	Black=3      OK:         	White=12    	Black=16     Best:        	White=3     	---        Strong:       	White=4     	---} 1-0

[Event "Sardinia World Festival-A 2024"]
[Site "Orosei"]
[Date "2024.04.29"]
[Round "3.23"]
[White "Casadio, Niccolo`"]
[Black "Bronstein, Or"]
[Result "0-1"]
[ECO "B90"]
[WhiteElo "2309"]
[BlackElo "2458"]
[Annotator "TA"]
[PlyCount "70"]
[EventDate "2024.04.26"]
[EventType "swiss"]
[EventCountry "ITA"]
[SourceTitle "playchess.com"]
[Source "ChessBase"]
[SourceQuality "1"]
[TimeControl "40/5400+30:1800+30"]

{[%evp 9,70,16,27,4,0,0,17,-22,-7,0,-2,-22,10,-2,0,0,52,51,86,39,62,9,23,25,56,13,87,81,75,22,47,-173,-54,-151,18,23,24,33,25,-166,-68,-937,-915,-936,-925,-1217,-1106,-1027,-1262,-1272,-1206,-1110,-616,-1437,-1417,-1329,-1299,-2683,-2294,-29978,-4894,-29982,-583]} 1. e4 {[%emt 0:08:05]} c5 {[%emt 0:01:13]} 2. Nf3 {[%emt 0:00:06]} d6 {[%emt 0:00:08]} 3. d4 {[%emt 0:00:04]} cxd4 {[%emt 0:00:05]} 4. Nxd4 {[%emt 0:00:03]} Nf6 {[%emt 0:00:08]} 5. Nc3 {[%emt 0:00:03]} a6 {[%emt 0:00:06]} 6. Qd3 {[%emt 0:00:05]} Nbd7 {[%emt 0:01:03]} 7. Be2 {[%emt 0:00:16]} e6 {[%emt 0:07:55]} 8. g4 {[%emt 0:00:32] The position is equal.} h6 {[%emt 0:02:06]} 9. Qh3 {[%emt 0:00:19]} Nc5 {[%emt 0:06:11]} 10. f3 {[%emt 0:00:15]} e5 {[%emt 0:09:19]} 11. Nf5 {[%emt 0:00:15]} g6 {[%emt 0:00:43]} 12. Ne3 {[%emt 0:00:16]} Be6 {[%emt 0:05:31]} (12... h5 $11) 13. Bd2 $14 {[%emt 0:04:45]} Be7 {[%emt 0:08:00]} 14. Qg2 {[%emt 0:06:33]} (14. O-O-O $16) 14... b5 {[%emt 0:05:05]} 15. a3 {[%emt 0:04:02]} (15. O-O-O $14) 15... Rb8 {[%emt 0:07:38]} 16. h4 {[%emt 0:17:19]} Nfd7 {[%emt 0:00:07]} 17. Qg3 {[%emt 0:00:48]} Nb6 {[%emt 0:01:16]} (17... h5 $11) 18. O-O-O $16 {[%emt 0:03:01]} Nca4 {[%emt 0:08:43] [#]} 19. g5 {[%emt 0:07:02]} Qc7 {[%emt 0:08:32][%cal Oa4b2] aiming for ...Nxb2!} 20. f4 $2 {[%emt 0:10:49] [#]} (20. Nxa4 $1 $14 Nxa4 21. gxh6) 20... Nxb2 {[%emt 0:13:04]} (20... exf4 $1 $19 {[%mdl 512]} 21. Qxf4 Rc8 (21... hxg5 22. hxg5 Rxh1 23. Rxh1 $11)) 21. Kxb2 {[%emt 0:05:30]} (21. f5 $1 $15 Nxd1 22. Kxd1 hxg5 23. fxe6 fxe6 24. Qg4) 21... Na4+ $2 {[%emt 0:00:01]} (21... exf4 $17 22. Qxf4 Na4+ 23. Nxa4 bxa4+ 24. Bb4 Rxb4+ 25. axb4 a3+ 26. Kc1 (26. Kxa3 Qc3+ 27. Ka4 Bd7+ 28. b5 O-O) 26... Qc3) 22. Nxa4 $11 {[%emt 0:00:21]} bxa4+ {[%emt 0:00:01]} 23. Ka1 {[%emt 0:01:30] And now fxe5 would win.} exf4 {[%emt 0:03:08]} 24. Qxf4 {[%emt 0:00:05] [#]} (24. Nd5 $1 $11 {and White has nothing to worry.} Bxd5 25. Qc3 Qxc3+ 26. Bxc3 Bxe4 27. Bxh8 Bxh1 28. Rxh1 hxg5 29. hxg5 (29. Bxa6 gxh4 30. Bd4 d5 $17) 29... Bxg5 30. Bd4 (30. Bxa6 f6 $11)) 24... Qc5 $40 {[%emt 0:00:14][%mdl 128] Black mounts an attack.} (24... hxg5 $1 $19 25. Qf3 (25. hxg5 $2 Rxh1 26. Rxh1 Qc5 $19) 25... g4) 25. Bb4 $2 {[%emt 0:00:34][%mdl 8192]} (25. gxh6 $2 Qxa3#) (25. Nc4 $15 Bxc4 26. Bb4 Rxb4 27. axb4 Qxb4 28. Bxc4 Qc3+ (28... Qxc4 29. Qe3 $15) 29. Kb1 Qxc4 30. Qe3) 25... Rxb4 $19 {[%emt 0:00:12]} 26. Rd3 {[%emt 0:02:10] Inhibits Qc3+.} Rd4 {[%emt 0:01:57]} ({Weaker is} 26... hxg5 27. axb4 gxf4 28. bxc5 fxe3 29. cxd6 $11) 27. Kb2 {[%emt 0:03:45]} hxg5 {[%emt 0:00:45]} 28. Qf3 {[%emt 0:00:02]} Rxd3 {[%emt 0:00:24]} 29. Bxd3 {[%emt 0:00:26]} Qd4+ {[%emt 0:03:14]} 30. Kc1 {[%emt 0:00:02]} gxh4 {[%emt 0:01:46]} 31. Nd5 {[%emt 0:00:47]} Bg5+ {[%emt 0:00:12]} 32. Kd1 {[%emt 0:00:02]} Bxd5 {[%emt 0:01:36]} 33. exd5 {[%emt 0:00:03]} O-O {[%emt 0:00:19] ( -> ...Re8)} 34. Rf1 {[%emt 0:00:07]} Qc3 {[%emt 0:01:10]} (34... f5 $142 35. Qf2 Qa1+ (35... Qxd5 $2 36. Rg1 $19) 36. Ke2 Qe5+ (36... Qxa3 $2 37. Qd4 $19) 37. Kd1 Re8 (37... Qxd5 $2 38. Rg1 $19) 38. c3 Qxd5 (38... Qxc3 $2 39. Qc2 $19) 39. Qc2 Re3 40. Kc1 Re2+ (40... Qxd3 41. Qxd3 Rxd3+ 42. Kb1 h3 43. Rh1 Rxc3 44. Kb2 Bf6 45. Rf1 Rf3+ 46. Ka2 h2 47. Rh1 Rf2+ 48. Kb1 Rb2+ 49. Kc1 Ra2 50. Rd1 Ra1+ 51. Kc2 Rxd1 52. Kxd1 h1=Q+ 53. Ke2 Qg2+ 54. Ke3 Be5 55. Kd3 Qf2 56. Kc4 Qd4#) 41. Kb1 Rxc2 42. Bxc2 Qb5+ 43. Ka2 Qxf1 44. Bxa4 h3 45. Bc2 Kf8 (45... Qc4+ {is a self mate.} 46. Bb3 d5 47. Bxc4 dxc4 48. a4 h2 49. Ka3 h1=Q 50. Kb4 Qd5 51. Ka3 Bc1+ 52. Ka2 Qg2+ 53. Kb1 Qb2#) 46. Kb2 Bc1+ 47. Kb1 Qe1 (47... Bxa3+ {leads to mate.} 48. Ka2 Qc1 49. Kb3 Qb2+ 50. Ka4 Qxc3 51. Bd1 Qb4#) (47... h2 48. Ba4 Qd3+ 49. Kxc1 h1=R+ 50. Bd1 Rxd1+ 51. Kb2 Qb1#) 48. c4 h2 (48... Bxa3+ $2 49. Bd1 Qc3 50. Be2 Qb2#) 49. Bb3 Qc3 50. Bd1 Qb2#) 35. Rf2 {[%emt 0:00:22]} Qa1+ {[%emt 0:00:24] Weighted Error Value: White=1.27/Black=0.59.  Loses game:     	White=3     	---        Mistake:       	White=4     	Black=5      Inaccurate:     	White=2     	Black=3      OK:         	White=7     	Black=5      Best:        	White=2     	Black=1} 0-1

[Event "Sardinia World Festival-A 2024"]
[Site "Orosei"]
[Date "2024.04.29"]
[Round "3.24"]
[White "Royal, Shreyas"]
[Black "Piscopo, Pierluigi"]
[Result "1/2-1/2"]
[ECO "D32"]
[WhiteElo "2455"]
[BlackElo "2312"]
[Annotator "TA"]
[PlyCount "85"]
[EventDate "2024.04.26"]
[EventType "swiss"]
[EventCountry "ITA"]
[SourceTitle "playchess.com"]
[Source "ChessBase"]
[SourceQuality "1"]
[TimeControl "40/5400+30:1800+30"]

{[%evp 12,85,34,42,45,50,31,22,29,10,17,14,0,17,16,8,26,25,23,4,0,0,0,0,0,0,0,-3,0,0,4,0,0,0,12,0,3,0,0,0,0,0,0,0,0,-8,-8,-22,-19,-19,-17,-17,0,0,0,0,0,0,0,0,0,-6,0,0,0,0,8,0,0,0,0,0,0,0,0,0]} 1. d4 {[%emt 0:00:04]} d5 {[%emt 0:00:12]} 2. c4 {[%emt 0:00:05]} e6 {[%emt 0:00:06][%cal Be7e6,Be6d5,Bd5d4][%mdl 32]} 3. Nc3 {[%emt 0:00:21]} c5 {[%emt 0:00:42]} 4. cxd5 {[%emt 0:00:16]} exd5 {[%emt 0:00:45]} 5. Nf3 {[%emt 0:00:08]} Nc6 {[%emt 0:02:17]} 6. dxc5 {[%emt 0:01:52]} d4 {[%emt 0:09:01]} 7. Na4 {[%emt 0:00:33]} Bxc5 {[%emt 0:15:21]} 8. Nxc5 {[%emt 0:00:43]} Qa5+ {[%emt 0:00:06]} 9. Bd2 {[%emt 0:00:26]} Qxc5 {[%emt 0:00:07]} 10. e3 {[%emt 0:02:38]} dxe3 {[%emt 0:04:34]} 11. Bxe3 {[%emt 0:00:47]} Qb4+ {[%emt 0:00:35]} 12. Qd2 {[%emt 0:04:17]} Qxd2+ {[%emt 0:04:57]} 13. Bxd2 {[%emt 0:10:25]} Be6 {[%emt 0:02:52]} 14. Bb5 {[%emt 0:08:07]} Nge7 {[%emt 0:04:17]} 15. O-O {[%emt 0:06:31]} O-O {[%emt 0:00:46] The position is equal.} 16. b3 {[%emt 0:02:45]} Rfd8 {[%emt 0:12:56]} 17. Rfd1 {[%emt 0:04:57]} h6 {[%emt 0:08:45]} 18. h3 {[%emt 0:04:14]} a6 {[%emt 0:13:25]} 19. Be2 {[%emt 0:00:39]} a5 {[%emt 0:00:06]} 20. Rdc1 {[%emt 0:06:20]} Nf5 {[%emt 0:06:39]} 21. Bd1 {[%emt 0:08:40]} Bd5 {[%emt 0:06:32]} 22. Be1 {[%emt 0:01:25]} Nb4 {[%emt 0:00:31]} 23. Rc3 {[%emt 0:05:26]} Be6 {[%emt 0:00:40]} 24. Bd2 {[%emt 0:05:56]} Bd5 {[%emt 0:02:42]} 25. a3 {[%emt 0:01:04]} Nc6 {[%emt 0:00:21] Hoping for ...Bxf3.} 26. Bf4 {[%emt 0:00:37]} Be6 {[%emt 0:00:10]} 27. Kf1 {[%emt 0:02:01]} Rd7 {[%emt 0:00:24]} 28. g4 {[%emt 0:06:59]} Nfe7 {[%emt 0:00:09][%cal Bf5e7,Be7c6,Bc6d4,Bd4b3][%mdl 32]} 29. Ne5 {[%emt 0:00:52]} Nxe5 {[%emt 0:01:29]} 30. Bxe5 {[%emt 0:00:02]} Nc6 {[%emt 0:00:10]} 31. Bf4 {[%emt 0:02:31]} Rad8 {[%emt 0:00:05]} 32. Be2 {[%emt 0:00:04]} Nd4 {[%emt 0:00:55]} 33. Bc4 {[%emt 0:00:55]} Bxc4+ {[%emt 0:00:55]} 34. bxc4 {[%emt 0:00:06]} a4 {[%emt 0:00:37]} 35. Re1 {[%emt 0:05:17]} Nb3 {[%emt 0:00:14]} 36. Re5 {[%emt 0:00:30]} Rd3 {[%emt 0:01:52]} 37. Rxd3 {[%emt 0:00:17]} Rxd3 $11 {[%emt 0:00:01][%mdl 4096] Endgame. KRB-KRN} 38. Be3 {[%emt 0:01:31]} Rc3 {[%emt 0:00:56]} 39. Rb5 {[%emt 0:00:31]} Rxc4 {[%emt 0:00:05]} 40. Rxb7 {[%emt 0:00:05]} Nd4 {[%emt 0:00:57]} 41. Bxd4 {[%emt 0:36:45]} Rxd4 {[%emt 0:31:43]} 42. Ke2 {[%emt 0:00:07] Dodges Rd3} g5 {[%emt 0:00:00]} 43. Ra7 {[%emt 0:00:00] Weighted Error Value: White=0.04 (flawless) /Black=0.02 (flawless) .  OK:         	White=12    	Black=19     Best:        	---       	Black=1} 1/2-1/2

[Event "Sardinia World Festival-A 2024"]
[Site "Orosei"]
[Date "2024.04.29"]
[Round "3.25"]
[White "Levin, Guy"]
[Black "Bettalli, Francesco"]
[Result "1/2-1/2"]
[ECO "D78"]
[WhiteElo "2451"]
[BlackElo "2309"]
[Annotator "TA"]
[PlyCount "85"]
[EventDate "2024.04.26"]
[EventType "swiss"]
[EventCountry "ITA"]
[SourceTitle "playchess.com"]
[Source "ChessBase"]
[SourceQuality "1"]
[TimeControl "40/5400+30:1800+30"]

{[%evp 11,85,14,26,0,37,35,35,44,98,83,93,91,89,116,91,79,82,35,97,81,97,101,109,111,117,93,105,76,79,91,245,39,47,22,17,17,29,0,0,0,0,0,0,-4,0,0,0,0,0,0,0,0,0,0,0,0,0,0,0,0,0,0,0,0,0,0,0,0,0,0,0,0,0,0,0,0]} 1. Nf3 g6 2. d4 Nf6 3. g3 Bg7 4. Bg2 d5 5. O-O O-O 6. c4 c6 7. a4 Ne4 8. Nc3 Nxc3 9. bxc3 {White is slightly better.} c5 (9... Bf5 $14) 10. cxd5 $16 (10. dxc5 e6 11. Bf4 Bxc3 $18) 10... Qxd5 11. Ba3 cxd4 12. Bxe7 Re8 13. Ba3 d3 14. Ne1 (14. exd3 $16 {Re1 is the strong threat.} Qa5 15. Nd4) 14... Qa5 ({Black should try} 14... Qxg2+ $14 15. Nxg2 dxe2) 15. Nxd3 ({But not} 15. Qxd3 $6 Nc6 $11) 15... Qxc3 16. Bb2 Qa5 17. Bxg7 Kxg7 18. Rc1 Nd7 19. Qb3 Rb8 20. Nf4 {[%emt 0:10:00] aiming for Nd5. White is more active.} b5 $2 {[%emt 0:10:00]} (20... Nf6 $16) 21. Bc6 $2 {[%emt 0:00:30]} (21. Qb2+ $18 Kh6 22. axb5 Rxb5 23. Qd4) 21... bxa4 $14 {[%emt 0:00:30]} 22. Qxa4 {[%emt 0:00:30]} (22. Qa3 {looks sharper.} Rd8 23. Rc4 Nb6 24. Rc5) 22... Qxa4 {[%emt 0:00:30]} 23. Bxa4 {[%emt 0:00:30] [#] Rc7 would now be deadly.} Re4 {[%emt 0:00:30]} 24. Bxd7 {[%emt 0:00:30]} Bxd7 {[%emt 0:00:30] The position is equal.} 25. Rc7 {[%emt 0:00:30][%csl LRa7,LRd7]} Bb5 {[%emt 0:00:30]} 26. f3 {[%emt 0:00:30]} Re3 {[%emt 0:00:30]} 27. Rxa7 {[%emt 0:00:30]} Bxe2 {[%emt 0:00:30]} 28. Rc1 {[%emt 0:00:30] [#] Threatens to win with Rcc7.} Rb2 {[%emt 0:00:30]} 29. Re1 $1 {[%emt 0:00:30]} Re8 {[%emt 0:00:30]} 30. h4 {[%emt 0:00:30]} Bb5 {[%emt 0:00:30]} 31. Rxe8 {[%emt 0:00:30]} Bxe8 $11 {[%emt 0:00:30][%mdl 4096] Endgame. KRB-KRN} 32. Ne6+ {[%emt 0:00:30]} Kf6 {[%emt 0:00:30]} 33. Ng5 {[%emt 0:00:30]} h6 {[%emt 0:00:30]} 34. Ne4+ {[%emt 0:00:30]} Kg7 {[%emt 0:00:30]} 35. Nd6 {[%emt 0:00:30]} Re2 {[%emt 0:00:30]} 36. g4 {[%emt 0:00:30]} Re6 {[%emt 0:00:30]} 37. Nc4 {[%emt 0:00:30]} Re2 {[%emt 0:00:30]} 38. Kf1 {[%emt 0:00:30]} Re6 {[%emt 0:00:30]} 39. Kf2 {[%emt 0:00:30]} Bb5 {[%emt 0:00:30]} 40. Ne3 {[%emt 0:00:30]} Bc6 {[%emt 0:00:30]} 41. Nc2 {[%emt 0:30:30]} Rd6 {[%emt 0:30:30]} 42. Ke3 {[%emt 0:00:30] Against Rd2} Re6+ {[%emt 0:00:30]} 43. Kf2 {[%emt 0:00:30] Weighted Error Value: White=0.17 (very precise) /Black=0.13 (very precise) .  Missed win:     	White=1     	---        Mistake:       	White=1     	Black=3      Inaccurate:     	White=1     	Black=1      OK:         	White=14    	Black=15     Best:        	White=3     	Black=1      Strong:       	White=1     	---} 1/2-1/2

[Event "Sardinia World Festival-A 2024"]
[Site "Orosei"]
[Date "2024.04.29"]
[Round "3.26"]
[White "Ben Ari, Yannay"]
[Black "Bifulco, Michel"]
[Result "1/2-1/2"]
[ECO "A36"]
[WhiteElo "2436"]
[BlackElo "2303"]
[Annotator "TA"]
[PlyCount "45"]
[EventDate "2024.04.26"]
[EventType "swiss"]
[EventCountry "ITA"]
[SourceTitle "playchess.com"]
[Source "ChessBase"]
[SourceQuality "1"]
[TimeControl "40/5400+30:1800+30"]

{[%evp 10,45,29,32,39,5,20,8,36,38,39,10,34,21,21,-21,12,0,10,-27,0,-9,-9,0,-13,-37,-23,-38,-49,-77,-73,-56,-66,-109,-84,-87,-54,-107]} 1. c4 {[%emt 0:00:07]} e5 {[%emt 0:00:09]} 2. g3 {[%emt 0:00:42]} c5 {[%emt 0:00:08]} 3. Bg2 {[%emt 0:00:16]} Nc6 {[%emt 0:00:08][%cal Bb8c6,Bc6d4,Bd4e6,Be6c7,Bc7d5][%mdl 32]} 4. Nc3 {[%emt 0:00:06]} g6 {[%emt 0:00:06]} 5. a3 {[%emt 0:00:08]} Bg7 {[%emt 0:00:08] [#]} 6. b4 $1 {[%emt 0:00:20]} d6 {[%emt 0:00:24]} 7. Bb2 {[%emt 0:02:43]} Nge7 {[%emt 0:01:19]} 8. b5 {[%emt 0:00:29]} Nd4 {[%emt 0:01:23] The position is equal.} 9. e3 {[%emt 0:00:18]} Ne6 {[%emt 0:00:03]} 10. Nge2 {[%emt 1:30:21]} O-O {[%emt 0:01:58]} 11. h4 {[%emt 0:00:00]} Nc7 {[%emt 0:04:11]} 12. Rc1 {[%emt 0:00:00]} Rb8 {[%emt 0:05:22]} 13. h5 {[%emt 0:00:00]} b6 {[%emt 0:09:26]} 14. Qc2 {[%emt 0:00:00]} d5 {[%emt 0:05:12]} 15. cxd5 {[%emt 0:00:00]} Nexd5 {[%emt 0:04:12]} 16. Nxd5 {[%emt 0:00:00]} Nxd5 {[%emt 0:00:15]} 17. d3 {[%emt 0:00:00]} Bb7 {[%emt 0:03:51][%cal Od5e3]} 18. hxg6 {[%emt 0:00:00]} hxg6 {[%emt 0:00:46][%cal Od5e3] [#] Strongly threatening ...Nxe3!} 19. e4 {[%emt 0:00:00]} Nc7 {[%emt 0:00:49]} 20. a4 {[%emt 0:00:00]} a6 {[%emt 0:03:26]} 21. bxa6 {[%emt 0:00:00]} Bxa6 {[%emt 0:02:23]} 22. Rd1 {[%emt 0:00:00]} Ne6 {[%emt 0:00:44]} 23. Qb1 {[%emt 0:00:00] Weighted Error Value: White=0.17 (very precise) /Black=0.14 (very precise) .  Mistake:       	White=1     	---        Inaccurate:     	White=6     	Black=3      OK:         	White=5     	Black=4} ({White should try} 23. Nc3 $15) 1/2-1/2

[Event "Sardinia World Festival-A 2024"]
[Site "Orosei"]
[Date "2024.04.29"]
[Round "3.27"]
[White "Degraeve, Remy"]
[Black "Krishnan, Ritvik"]
[Result "0-1"]
[ECO "A37"]
[WhiteElo "2432"]
[BlackElo "2277"]
[Annotator "TA"]
[PlyCount "68"]
[EventDate "2024.04.26"]
[EventType "swiss"]
[EventCountry "ITA"]
[SourceTitle "playchess.com"]
[Source "ChessBase"]
[SourceQuality "1"]
[TimeControl "40/5400+30:1800+30"]

{[%evp 9,68,2,14,14,6,9,15,14,18,4,24,13,14,22,18,15,22,-111,-97,-572,-584,-586,-584,-615,-575,-707,-719,-741,-713,-1020,-1020,-975,-937,-948,-964,-907,-968,-919,-575,-1010,-1010,-1066,-1064,-1039,-1022,-1127,-1133,-29985,-2073,-29987,-29988,-5727,-1163,-29989,-29990,-29992,-29993,-29993,-29994,-29994,-29995]} 1. c4 {[%emt 0:00:31]} c5 {[%emt 0:00:49]} 2. Nf3 {[%emt 0:00:09]} Nc6 {[%emt 0:00:04]} 3. g3 {[%emt 0:00:05]} g6 {[%emt 0:00:05]} 4. Bg2 {[%emt 0:00:06]} Bg7 {[%emt 0:00:05]} 5. Nc3 {[%emt 0:00:05]} e6 {[%emt 0:00:19]} 6. h4 {[%emt 0:00:08]} Nf6 {[%emt 0:04:03]} 7. d4 {[%emt 0:00:11]} cxd4 {[%emt 0:02:17]} 8. Nxd4 {[%emt 0:00:10] The position is equal.} O-O {[%emt 0:02:40]} 9. c5 {[%emt 0:04:53]} Nxd4 {[%emt 0:13:09]} 10. Qxd4 {[%emt 0:00:06]} Nd5 {[%emt 0:00:40] Prevents Bf4} 11. Qc4 {[%emt 0:07:50]} Nxc3 {[%emt 0:02:01]} 12. bxc3 {[%emt 0:00:05]} Qc7 {[%emt 0:07:58]} 13. h5 {[%emt 0:09:38]} (13. Bf4 $11 Be5 14. Bxe5 Qxe5 15. a4) 13... d5 $36 {[%emt 0:07:05][%mdl 2048] Keeping White busy.} 14. Qh4 {[%emt 0:10:17][%mdl 8192] Now White is beyond hope.} (14. Qb4 $17) 14... Bxc3+ $19 {[%emt 0:04:06]} (14... Qxc5 15. O-O $17) 15. Kf1 {[%emt 0:01:19]} Bxa1 {[%emt 0:00:59]} 16. Bf4 {[%emt 0:00:05]} Qd7 {[%emt 0:06:18]} ({And not} 16... Qxc5 17. hxg6 h5 18. Qxh5) 17. e4 {[%emt 0:00:45]} dxe4 {[%emt 0:02:39] ( -> ...Qd1#)} 18. Bxe4 {[%emt 0:01:19]} f5 {[%emt 0:03:41]} 19. hxg6 {[%emt 0:15:51]} fxe4 {[%emt 0:03:38]} 20. Bd6 {[%emt 0:00:33]} hxg6 {[%emt 0:15:34]} 21. Qxe4 {[%emt 0:01:22] [#]} Qf7 $1 {[%emt 0:01:42][%csl Gf8][%cal Rf7f2]} 22. Bxf8 {[%emt 0:02:01]} Kxf8 {[%emt 0:00:27]} 23. Kg2 {[%emt 0:01:07]} Qf5 {[%emt 0:08:55]} 24. Qb4 {[%emt 0:02:28]} Bf6 {[%emt 0:02:37]} 25. Rd1 {[%emt 0:06:00]} Be7 {[%emt 0:01:25]} 26. Qc3 {[%emt 0:09:35]} Qf6 {[%emt 0:01:15]} 27. Qc1 {[%emt 0:06:44]} e5 {[%emt 0:01:19] aiming for ...Bg4.} 28. f4 {[%emt 0:00:41] [#]} Bd7 $1 {[%emt 0:01:19]} 29. fxe5 {[%emt 0:00:27]} (29. Qe3 Bc6+) 29... Bc6+ {[%emt 0:00:12]} 30. Kg1 {[%emt 0:00:03]} Qg5 {[%emt 0:00:27]} 31. Qc3 {[%emt 0:00:36]} Kg8 {[%emt 0:00:51] Black mates.} 32. Rd3 {[%emt 0:02:42]} Rf8 {[%emt 0:00:48]} 33. Qc4+ {[%emt 0:00:07]} Kg7 {[%emt 0:00:12]} 34. Qc3 {[%emt 0:00:05]} Qh5 {[%emt 0:00:42] Weighted Error Value: White=1.10/Black=0.24 (precise) .  Loses game:     	White=1     	---        Mistake:       	White=1     	---        OK:         	White=2     	Black=4      Best:        	---       	Black=2} 0-1